fUSD/lending_fUSD_20250505
["ID","MTS","AMOUNT","RATE_DAILY","PERIOD"]
[359964583,1746452577176,-712.26,0.00019923,2]
[359964584,1746452577197,-712.26,0.00019923,2]
[359964585,1746452577219,-712.26,0.00019923,2]
[359964586,1746452577240,-548.61,0.00019923,2]
[359964587,1746452577263,-450.0,0.00019923,2]
[359964588,1746452577286,-450.0,0.00019923,2]
[359964589,1746452577435,-450.0,0.00019923,2]
[359964590,1746452577458,-450.0,0.00019923,2]
[359964591,1746452577481,-450.0,0.00019923,2]
[359964592,1746452577504,-450.0,0.00019923,2]
[359964593,1746452577526,-450.0,0.00019923,2]
[359964594,1746452577549,-450.0,0.00019923,2]
[359964595,1746452577571,-450.0,0.00019923,2]
[359964596,1746452577593,-450.0,0.00019923,2]
[359964597,1746452577615,-450.0,0.00019923,2]
[359964598,1746452577638,-450.0,0.00019923,2]
[359964599,1746452577660,-666.58,0.00019923,2]
[359964600,1746452577682,-666.58,0.00019923,2]
[359964601,1746452577705,-666.58,0.00019923,2]
[359964602,1746452577729,-1543.37,0.00019923,2]
[359964603,1746452577750,-1543.37,0.00019923,2]
[359964604,1746452577772,-1543.37,0.00019923,2]
[359964605,1746452577797,-151.0,0.00019923,2]
[359964606,1746452577819,-207.452638,0.00019923,2]
[359964607,1746452577840,-215.786363,0.00019923,2]
[359964608,1746452577862,-450.0,0.00019923,2]
[359964609,1746452577883,-450.0,0.00019923,2]
[359964610,1746452577905,-450.0,0.00019923,2]
[359964611,1746452577926,-450.0,0.00019923,2]
[359964612,1746452577947,-450.0,0.00019923,2]
[359964613,1746452577969,-450.0,0.00019923,2]
[359964614,1746452577989,-914.51,0.00019923,2]
[359964615,1746452578010,-914.51,0.00019923,2]
[359964616,1746452578034,-914.51,0.00019923,2]
[359964617,1746452578057,-450.0,0.00019923,2]
[359964618,1746452578080,-450.0,0.00019923,2]
[359964619,1746452578102,-450.0,0.00019923,2]
[359964620,1746452578124,-450.0,0.00019923,2]
[359964621,1746452578146,-450.0,0.00019923,2]
[359964622,1746452578168,-581.92,0.00019923,2]
[359964623,1746452578190,-17618.11,0.00019923,2]
[359964624,1746452578211,-17618.11,0.00019923,2]
[359964625,1746452578232,-17618.11,0.00019923,2]
[359964626,1746452578254,-539.97,0.00019923,2]
[359964627,1746452578275,-539.97,0.00019923,2]
[359964628,1746452578298,-539.97,0.00019923,2]
[359964629,1746452578319,-201.02023763,0.00019923,2]
[359964630,1746452578341,-500.0,0.00019923,2]
[359964631,1746452578363,-572.95923333,0.00019923,2]
[359964632,1746452578384,-202.42755118,0.00019923,2]
[359964633,1746452578406,-500.0,0.00019923,2]
[359964634,1746452578427,-500.0,0.00019923,2]
[359964635,1746452578452,-500.0,0.00019923,2]
[359964636,1746452578474,-500.0,0.00019923,2]
[359964637,1746452578495,-500.0,0.00019923,2]
[359964638,1746452578517,-490.69,0.00019923,2]
[359964639,1746452578539,-490.69,0.00019923,2]
[359964640,1746452578560,-490.69,0.00019923,2]
[359964641,1746452578581,-97.81363874,0.00019923,2]
[359964642,1746452579255,250.0,0.00018959,2]
[359964643,1746452579618,1706.61418,0.00029999,30]
[359964644,1746452603463,-1694.6075,0.00019797,2]
[359964645,1746452603484,-277.35682518,0.00019847,2]
[359964646,1746452603504,-197.8552218,0.00019879,2]
[359964647,1746452603525,-197.85522179,0.0001989,2]
[359964648,1746452603546,-463.52548413,0.00019896,2]
[359964649,1746452603570,-300.0,0.00019896,2]
[359964650,1746452603590,-459.64622207,0.00019896,2]
[359964651,1746452603613,-450.0,0.00019896,2]
[359964652,1746452603634,-545.94271448,0.00019896,2]
[359964653,1746452603656,-453.76695572,0.00019896,2]
[359964654,1746452603676,-528.20403667,0.00019896,2]
[359964655,1746452603697,-453.94957557,0.00019896,2]
[359964656,1746452603717,-450.0,0.00019896,2]
[359964657,1746452603738,-450.0,0.00019896,2]
[359964658,1746452603759,-450.0,0.00019896,2]
[359964659,1746452603779,-450.0,0.00019896,2]
[359964660,1746452603801,-3208.65,0.00019896,2]
[359964661,1746452603822,-450.0,0.00019896,2]
[359964662,1746452603843,-450.0,0.00019896,2]
[359964663,1746452603865,-450.0,0.00019896,2]
[359964664,1746452604004,-515.82031115,0.00019896,2]
[359964665,1746452604030,-596.27,0.00019896,2]
[359964666,1746452604059,-555.79374362,0.00019896,2]
[359964667,1746452604084,-452.85885943,0.00019896,2]
[359964668,1746452604107,-450.0,0.00019896,2]
[359964669,1746452604131,-450.0,0.00019896,2]
[359964670,1746452604153,-450.0,0.00019896,2]
[359964671,1746452604175,-450.0,0.00019896,2]
[359964672,1746452604196,-464.57904137,0.00019896,2]
[359964673,1746452604219,-450.0,0.00019896,2]
[359964674,1746452604241,-450.0,0.00019896,2]
[359964675,1746452604262,-450.0,0.00019896,2]
[359964676,1746452604284,-450.0,0.00019897,2]
[359964677,1746452604305,-450.0,0.00019897,2]
[359964678,1746452604328,-524.73403359,0.00019897,2]
[359964679,1746452604350,-450.0,0.00019897,2]
[359964680,1746452604372,-450.0,0.00019897,2]
[359964681,1746452604395,-450.0,0.00019897,2]
[359964682,1746452604416,-450.0,0.00019897,2]
[359964683,1746452604438,-453.63209333,0.00019897,2]
[359964684,1746452604458,-457.99833282,0.00019897,2]
[359964685,1746452604478,-450.0,0.00019897,2]
[359964686,1746452604500,-300.0,0.00019898,2]
[359964687,1746452604521,-151.0,0.00019898,2]
[359964688,1746452604542,-151.0,0.00019898,2]
[359964689,1746452604562,-450.0,0.00019898,2]
[359964690,1746452604587,-450.0,0.00019898,2]
[359964691,1746452604608,-151.0,0.00019898,2]
[359964692,1746452604629,-450.0,0.00019898,2]
[359964693,1746452604650,-450.0,0.00019898,2]
[359964694,1746452604671,-450.0,0.00019898,2]
[359964695,1746452604692,-450.0,0.00019898,2]
[359964696,1746452604712,-153.724553,0.00019898,2]
[359964697,1746452604732,-450.0,0.00019898,2]
[359964698,1746452604754,-450.0,0.00019898,2]
[359964699,1746452604775,-450.0,0.00019898,2]
[359964700,1746452604797,-450.0,0.00019899,2]
[359964701,1746452604819,-151.0,0.00019899,2]
[359964702,1746452604840,-151.0,0.00019899,2]
[359964703,1746452604860,-151.0,0.00019899,2]
[359964704,1746452604882,-164.899681,0.00019899,2]
[359964705,1746452604902,-180.68,0.00019899,2]
[359964706,1746452604923,-450.0,0.00019899,2]
[359964707,1746452604944,-200.0,0.00019899,2]
[359964708,1746452604966,-151.0,0.00019899,2]
[359964709,1746452604987,-150.0,0.00019899,2]
[359964710,1746452605007,-151.0,0.00019899,2]
[359964711,1746452605028,-500.0,0.00019899,2]
[359964712,1746452605051,-450.0,0.00019899,2]
[359964713,1746452605073,-450.0,0.00019899,2]
[359964714,1746452605094,-420.42183192,0.00019899,2]
[359964715,1746452605116,-200.0,0.00019899,2]
[359964716,1746452605137,-150.0,0.00019899,2]
[359964717,1746452605157,-200.0,0.00019899,2]
[359964718,1746452605178,-500.0,0.00019899,2]
[359964719,1746452605198,-450.0,0.00019899,2]
[359964720,1746452605219,-450.0,0.00019899,2]
[359964721,1746452605239,-450.0,0.00019899,2]
[359964722,1746452605260,-450.0,0.00019899,2]
[359964723,1746452605282,-450.0,0.00019899,2]
[359964724,1746452605303,-151.0,0.000199,2]
[359964725,1746452605326,-165.200704,0.000199,2]
[359964726,1746452605347,-197.85522179,0.000199,2]
[359964727,1746452605367,-151.0,0.000199,2]
[359964728,1746452605389,-1313.392562,0.000199,2]
[359964729,1746452605410,-151.0,0.000199,2]
[359964730,1746452605433,-1313.392562,0.000199,2]
[359964731,1746452605455,-450.0,0.00019922,2]
[359964732,1746452605478,-3208.65,0.00019922,2]
[359964733,1746452605500,-450.0,0.00019922,2]
[359964734,1746452605521,-450.0,0.00019922,2]
[359964735,1746452605543,-352.18636126,0.00019923,2]
[359964736,1746452605564,-450.0,0.00019923,2]
[359964737,1746452605590,-450.0,0.00019923,2]
[359964738,1746452605713,-450.0,0.00019923,2]
[359964739,1746452605736,-453.64158599,0.00019923,2]
[359964740,1746452605758,-478.36,0.00019923,2]
[359964741,1746452605780,-478.36,0.00019923,2]
[359964742,1746452605801,-478.36,0.00019923,2]
[359964743,1746452605823,-151.0,0.00019923,2]
[359964744,1746452605845,-151.0,0.00019923,2]
[359964745,1746452605866,-510.44,0.00019923,2]
[359964746,1746452605888,-510.44,0.00019923,2]
[359964747,1746452605910,-510.44,0.00019923,2]
[359964748,1746452605931,-151.0,0.00019923,2]
[359964749,1746452605952,-157.227919,0.00019923,2]
[359964750,1746452605973,-450.0,0.00019923,2]
[359964751,1746452605996,-3005.89,0.00019923,2]
[359964752,1746452606018,-450.0,0.00019923,2]
[359964753,1746452606042,-3005.89,0.00019923,2]
[359964754,1746452606064,-450.0,0.00019923,2]
[359964755,1746452606088,-3005.89,0.00019923,2]
[359964756,1746452606110,-450.0,0.00019923,2]
[359964757,1746452606132,-1313.392562,0.00019923,2]
[359964758,1746452606152,-1313.392562,0.00019923,2]
[359964759,1746452606173,-168.903321,0.00019923,2]
[359964760,1746452606193,-1313.392562,0.00019923,2]
[359964761,1746452606213,-1313.392562,0.00019923,2]
[359964762,1746452606234,-151.0,0.00019924,2]
[359964763,1746452606255,-151.0,0.00019924,2]
[359964764,1746452606277,-286.703638,0.00019924,2]
[359964765,1746452606298,-258.760831,0.00019924,2]
[359964766,1746452606320,-258.760831,0.00019924,2]
[359964767,1746452606341,-151.0,0.00019924,2]
[359964768,1746452606363,-151.0,0.00019924,2]
[359964769,1746452606385,-151.0,0.00019924,2]
[359964770,1746452606407,-173.163824,0.00019924,2]
[359964771,1746452606428,-151.0,0.00019924,2]
[359964772,1746452606448,-151.0,0.00019924,2]
[359964773,1746452606469,-157.977804,0.00019924,2]
[359964774,1746452606491,-151.0,0.00019924,2]
[359964775,1746452606512,-160.319865,0.00019924,2]
[359964776,1746452606533,-465.56634054,0.00019924,2]
[359964777,1746452606556,-450.0,0.00019924,2]
[359964778,1746452606579,-450.0,0.00019924,2]
[359964779,1746452606600,-151.0,0.00019924,2]
[359964780,1746452606622,-419.0,0.00019924,2]
[359964781,1746452606645,-450.0,0.00019924,2]
[359964782,1746452606668,-450.0,0.00019924,2]
[359964783,1746452606689,-666.760802,0.00019924,2]
[359964784,1746452606711,-450.0,0.00019924,2]
[359964785,1746452606732,-666.760802,0.00019924,2]
[359964786,1746452606755,-567.04,0.00019924,2]
[359964787,1746452606775,-450.0,0.00019924,2]
[359964788,1746452606796,-492.8,0.00019924,2]
[359964789,1746452606818,-450.0,0.00019924,2]
[359964790,1746452606839,-190.569501,0.00019924,2]
[359964791,1746452606861,-450.0,0.00019924,2]
[359964792,1746452606882,-151.0,0.00019924,2]
[359964793,1746452606904,-151.0,0.00019924,2]
[359964794,1746452606926,-450.0,0.00019924,2]
[359964795,1746452606949,-450.0,0.00019924,2]
[359964796,1746452606970,-153.526716,0.00019924,2]
[359964797,1746452606993,-159.48863418,0.00019924,2]
[359964798,1746452607015,-151.0,0.00019924,2]
[359964799,1746452607039,-151.0,0.00019924,2]
[359964800,1746452607060,-151.0,0.00019924,2]
[359964801,1746452607082,-151.0,0.00019924,2]
[359964802,1746452607104,-450.0,0.00019924,2]
[359964803,1746452607125,-450.0,0.00019924,2]
[359964804,1746452607146,-450.0,0.00019924,2]
[359964805,1746452607168,-450.0,0.00019924,2]
[359964806,1746452607188,-151.0,0.00019924,2]
[359964807,1746452607211,-151.0,0.00019924,2]
[359964808,1746452607333,-450.0,0.00019924,2]
[359964809,1746452607356,-450.0,0.00019924,2]
[359964810,1746452607379,-450.0,0.00019924,2]
[359964811,1746452607400,-450.0,0.00019924,2]
[359964812,1746452607422,-450.0,0.00019924,2]
[359964813,1746452607444,-450.0,0.00019924,2]
[359964814,1746452607466,-151.0,0.00019924,2]
[359964815,1746452607487,-151.0,0.00019924,2]
[359964816,1746452607507,-151.0,0.00019924,2]
[359964817,1746452607528,-178.969441,0.00019924,2]
[359964818,1746452607549,-153.377997,0.00019924,2]
[359964819,1746452607569,-178.969441,0.00019924,2]
[359964820,1746452607592,-153.377997,0.00019924,2]
[359964821,1746452607613,-151.0,0.00019924,2]
[359964822,1746452607635,-153.377997,0.00019924,2]
[359964823,1746452607655,-153.377997,0.00019924,2]
[359964824,1746452607676,-151.0,0.00019924,2]
[359964825,1746452607696,-151.0,0.00019924,2]
[359964826,1746452607716,-223.777524,0.00019924,2]
[359964827,1746452607736,-191.406265,0.00019924,2]
[359964828,1746452607756,-151.0,0.00019924,2]
[359964829,1746452607776,-273.398801,0.00019924,2]
[359964830,1746452607796,-151.0,0.00019924,2]
[359964831,1746452607817,-154.922203,0.00019924,2]
[359964832,1746452607841,-151.0,0.00019924,2]
[359964833,1746452607862,-1313.392562,0.00019924,2]
[359964834,1746452607882,-150.0,0.00019926,2]
[359964835,1746452607904,-500.0,0.00019926,2]
[359964836,1746452607925,-500.0,0.00019926,2]
[359964837,1746452607946,-150.0,0.00019926,2]
[359964838,1746452607967,-500.0,0.00019926,2]
[359964839,1746452607989,-150.0,0.00019926,2]
[359964840,1746452608010,-150.0,0.00019926,2]
[359964841,1746452608031,-205.56417428,0.00019926,2]
[359964842,1746452608059,-150.0,0.00019926,2]
[359964843,1746452608083,-500.0,0.00019926,2]
[359964844,1746452608120,-150.0,0.00019926,2]
[359964845,1746452608143,-605.06185586,0.00019926,2]
[359964846,1746452608165,-450.0,0.00019934,2]
[359964847,1746452608188,-500.0,0.00019934,2]
[359964848,1746452608209,-548.7731892,0.00019934,2]
[359964849,1746452608231,-450.0,0.00019934,2]
[359964850,1746452608253,-450.0,0.00019934,2]
[359964851,1746452608274,-450.0,0.00019934,2]
[359964852,1746452608296,-450.0,0.00019934,2]
[359964853,1746452608317,-450.0,0.00019934,2]
[359964854,1746452608339,-450.0,0.00019934,2]
[359964855,1746452608360,-450.0,0.00019934,2]
[359964856,1746452608383,-663.21,0.00019934,2]
[359964857,1746452608433,-450.0,0.00019934,2]
[359964858,1746452608457,-544.23,0.00019934,2]
[359964859,1746452608478,-314.22577078,0.00019934,2]
[359964860,1746452608498,-450.0,0.00019934,2]
[359964861,1746452608519,-450.0,0.00019934,2]
[359964862,1746452608540,-487.52,0.00019934,2]
[359964863,1746452608562,-450.0,0.00019934,2]
[359964864,1746452608582,-586.99,0.00019934,2]
[359964865,1746452608603,-763.5,0.00019934,2]
[359964866,1746452608624,-450.0,0.00019934,2]
[359964867,1746452608645,-3420.54,0.00019934,2]
[359964868,1746452608670,-450.0,0.00019934,2]
[359964869,1746452608690,-158.19,0.00019934,2]
[359964870,1746452608710,-340.68,0.00019934,2]
[359964871,1746452608730,-450.0,0.00019934,2]
[359964872,1746452608751,-450.0,0.00019934,2]
[359964873,1746452608772,-450.0,0.00019934,2]
[359964874,1746452608794,-450.0,0.00019934,2]
[359964875,1746452608913,-450.0,0.00019934,2]
[359964876,1746452608939,-450.0,0.00019934,2]
[359964877,1746452608964,-3208.65,0.00019934,2]
[359964878,1746452608989,-562413.1637632,0.00019935,2]
[359964879,1746452609011,-151.0,0.00019935,2]
[359964880,1746452609035,-151.0,0.00019935,2]
[359964881,1746452609057,-151.0,0.00019935,2]
[359964882,1746452609081,-151.0,0.00019935,2]
[359964883,1746452609103,-165.86504,0.00019935,2]
[359964884,1746452609125,-151.0,0.00019935,2]
[359964885,1746452609147,-151.0,0.00019935,2]
[359964886,1746452609168,-666.760802,0.00019935,2]
[359964887,1746452609190,-666.760802,0.00019935,2]
[359964888,1746452609212,-151.0,0.00019935,2]
[359964889,1746452609234,-151.0,0.00019935,2]
[359964890,1746452609255,-151.0,0.00019935,2]
[359964891,1746452609276,-151.0,0.00019935,2]
[359964892,1746452609298,-151.0,0.00019935,2]
[359964893,1746452609319,-151.0,0.00019935,2]
[359964894,1746452609344,-240.149788,0.00019935,2]
[359964895,1746452609366,-178.969441,0.00019935,2]
[359964896,1746452609389,-178.969441,0.00019935,2]
[359964897,1746452609412,-153.377997,0.00019935,2]
[359964898,1746452609435,-151.0,0.00019935,2]
[359964899,1746452609456,-153.377997,0.00019935,2]
[359964900,1746452609476,-151.0,0.00019935,2]
[359964901,1746452609496,-151.0,0.00019935,2]
[359964902,1746452609517,-151.0,0.00019935,2]
[359964903,1746452609539,-151.0,0.00019935,2]
[359964904,1746452609560,-1313.392562,0.00019935,2]
[359964905,1746452609582,-1313.392562,0.00019935,2]
[359964906,1746452609603,-30505.27427728,0.00019935,2]
[359964907,1746452651285,-206.9157734,0.00019799,2]
[359964908,1746452651307,-157.122744,0.00019853,2]
[359964909,1746452651328,-300.0,0.00019895,2]
[359964910,1746452651350,-450.0,0.00019896,2]
[359964911,1746452651373,-450.0,0.00019896,2]
[359964912,1746452651394,-450.0,0.00019896,2]
[359964913,1746452651415,-467.4611304,0.00019896,2]
[359964914,1746452651435,-450.0,0.00019896,2]
[359964915,1746452651456,-450.0,0.00019896,2]
[359964916,1746452651477,-450.0,0.00019896,2]
[359964917,1746452651498,-450.0,0.00019896,2]
[359964918,1746452651519,-450.0,0.00019896,2]
[359964919,1746452651540,-450.0,0.00019896,2]
[359964920,1746452651561,-450.0,0.00019896,2]
[359964921,1746452651582,-450.0,0.00019896,2]
[359964922,1746452651602,-465.58478241,0.00019896,2]
[359964923,1746452651622,-450.0,0.00019896,2]
[359964924,1746452651642,-456.37527275,0.00019896,2]
[359964925,1746452651662,-450.0,0.00019896,2]
[359964926,1746452651682,-464.57555561,0.00019896,2]
[359964927,1746452651703,-450.0,0.00019896,2]
[359964928,1746452651724,-450.0,0.00019896,2]
[359964929,1746452651746,-450.0,0.00019896,2]
[359964930,1746452651767,-450.0,0.00019896,2]
[359964931,1746452651787,-450.0,0.00019896,2]
[359964932,1746452651808,-450.0,0.00019896,2]
[359964933,1746452651828,-450.0,0.00019896,2]
[359964934,1746452651848,-450.0,0.00019896,2]
[359964935,1746452651870,-450.0,0.00019896,2]
[359964936,1746452651891,-450.0,0.00019896,2]
[359964937,1746452651912,-450.0,0.00019896,2]
[359964938,1746452651934,-450.0,0.00019896,2]
[359964939,1746452651956,-48272.63,0.00019896,2]
[359964940,1746452651980,-729.68,0.00019896,2]
[359964941,1746452652002,-450.0,0.00019896,2]
[359964942,1746452652026,-450.0,0.00019896,2]
[359964943,1746452652050,-450.0,0.00019896,2]
[359964944,1746452652072,-450.0,0.00019896,2]
[359964945,1746452652092,-450.0,0.00019896,2]
[359964946,1746452652114,-461.48757921,0.00019896,2]
[359964947,1746452652137,-450.0,0.00019896,2]
[359964948,1746452652158,-450.0,0.00019896,2]
[359964949,1746452652180,-450.0,0.00019896,2]
[359964950,1746452652200,-450.0,0.00019896,2]
[359964951,1746452652221,-450.0,0.00019896,2]
[359964952,1746452652242,-450.0,0.00019896,2]
[359964953,1746452652262,-450.0,0.00019896,2]
[359964954,1746452652283,-450.0,0.00019896,2]
[359964955,1746452652304,-450.0,0.00019896,2]
[359964956,1746452652327,-450.0,0.00019897,2]
[359964957,1746452652347,-450.0,0.00019897,2]
[359964958,1746452652369,-450.0,0.00019897,2]
[359964959,1746452652390,-450.0,0.00019897,2]
[359964960,1746452652411,-450.0,0.00019897,2]
[359964961,1746452652432,-450.0,0.00019897,2]
[359964962,1746452652452,-450.0,0.00019897,2]
[359964963,1746452652471,-524.67325764,0.00019897,2]
[359964964,1746452652491,-450.0,0.00019897,2]
[359964965,1746452652512,-450.0,0.00019897,2]
[359964966,1746452652533,-450.0,0.00019897,2]
[359964967,1746452652554,-509.11,0.00019897,2]
[359964968,1746452652574,-450.0,0.00019897,2]
[359964969,1746452652595,-450.0,0.00019897,2]
[359964970,1746452652618,-510.66,0.00019897,2]
[359964971,1746452652639,-458.27232362,0.00019897,2]
[359964972,1746452652660,-459.0295421,0.00019897,2]
[359964973,1746452652680,-455.91609395,0.00019897,2]
[359964974,1746452652700,-450.0,0.00019897,2]
[359964975,1746452652720,-450.0,0.00019897,2]
[359964976,1746452652741,-450.0,0.00019897,2]
[359964977,1746452652762,-458.29053416,0.00019897,2]
[359964978,1746452652783,-462.41550184,0.00019897,2]
[359964979,1746452652804,-450.0,0.00019897,2]
[359964980,1746452652824,-450.0,0.00019897,2]
[359964981,1746452652844,-450.0,0.00019897,2]
[359964982,1746452652866,-450.0,0.00019898,2]
[359964983,1746452652887,-450.0,0.00019898,2]
[359964984,1746452652908,-450.0,0.00019898,2]
[359964985,1746452652930,-151.0,0.00019898,2]
[359964986,1746452652952,-450.0,0.00019898,2]
[359964987,1746452652974,-450.0,0.00019898,2]
[359964988,1746452652995,-450.0,0.00019898,2]
[359964989,1746452653016,-450.0,0.00019898,2]
[359964990,1746452653039,-568.67762092,0.00019898,2]
[359964991,1746452653064,-450.0,0.00019898,2]
[359964992,1746452653087,-450.0,0.00019898,2]
[359964993,1746452653109,-450.0,0.00019898,2]
[359964994,1746452653132,-450.0,0.00019898,2]
[359964995,1746452653154,-450.0,0.00019898,2]
[359964996,1746452653175,-450.0,0.00019898,2]
[359964997,1746452653197,-510.66,0.00019898,2]
[359964998,1746452653217,-450.0,0.00019898,2]
[359964999,1746452653238,-450.0,0.00019898,2]
[359965000,1746452653258,-450.0,0.00019898,2]
[359965001,1746452653278,-437.06,0.00019898,2]
[359965002,1746452653298,-450.0,0.00019898,2]
[359965003,1746452653318,-450.0,0.00019899,2]
[359965004,1746452653337,-450.0,0.00019899,2]
[359965005,1746452653357,-151.0,0.00019899,2]
[359965006,1746452653381,-151.0,0.00019899,2]
[359965007,1746452653401,-450.0,0.00019899,2]
[359965008,1746452653421,-450.0,0.00019899,2]
[359965009,1746452653442,-266.06,0.00019899,2]
[359965010,1746452653463,-450.0,0.00019899,2]
[359965011,1746452653483,-450.0,0.00019899,2]
[359965012,1746452653503,-450.0,0.00019899,2]
[359965013,1746452653524,-450.0,0.00019899,2]
[359965014,1746452653545,-450.0,0.00019899,2]
[359965015,1746452653566,-450.0,0.00019899,2]
[359965016,1746452653586,-450.0,0.00019899,2]
[359965017,1746452653607,-450.0,0.00019899,2]
[359965018,1746452653631,-450.0,0.00019899,2]
[359965019,1746452653651,-510.66,0.00019899,2]
[359965020,1746452653672,-450.0,0.00019899,2]
[359965021,1746452653692,-450.0,0.00019899,2]
[359965022,1746452653712,-450.0,0.00019899,2]
[359965023,1746452653732,-450.0,0.00019899,2]
[359965024,1746452653753,-593.75353242,0.00019899,2]
[359965025,1746452653774,-450.0,0.00019899,2]
[359965026,1746452653795,-450.0,0.00019899,2]
[359965027,1746452653815,-151.0,0.000199,2]
[359965028,1746452653839,-337.66165088,0.000199,2]
[359965029,1746452653862,-181.132582,0.000199,2]
[359965030,1746452653883,-181.132582,0.000199,2]
[359965031,1746452653905,-382.96,0.00019922,2]
[359965032,1746452653927,-450.0,0.00019922,2]
[359965033,1746452653950,-450.0,0.00019922,2]
[359965034,1746452653972,-450.0,0.00019922,2]
[359965035,1746452653994,-48272.63,0.00019922,2]
[359965036,1746452654016,-729.68,0.00019922,2]
[359965037,1746452654038,-450.0,0.00019922,2]
[359965038,1746452654062,-450.0,0.00019922,2]
[359965039,1746452654084,-450.0,0.00019922,2]
[359965040,1746452654105,-528.5,0.00019923,2]
[359965041,1746452654127,-528.5,0.00019923,2]
[359965042,1746452654148,-528.5,0.00019923,2]
[359965043,1746452654169,-151.0,0.00019923,2]
[359965044,1746452654189,-151.0,0.00019923,2]
[359965045,1746452654210,-5690.77,0.00019923,2]
[359965046,1746452654230,-5690.77,0.00019923,2]
[359965047,1746452654250,-5690.77,0.00019923,2]
[359965048,1746452654271,-451.02,0.00019923,2]
[359965049,1746452654292,-451.02,0.00019923,2]
[359965050,1746452654313,-451.02,0.00019923,2]
[359965051,1746452654334,-450.0,0.00019923,2]
[359965052,1746452654354,-587.72900707,0.00019923,2]
[359965053,1746452654376,-2889.73,0.00019923,2]
[359965054,1746452654396,-2889.73,0.00019923,2]
[359965055,1746452654416,-2889.73,0.00019923,2]
[359965056,1746452654437,-500.0,0.00019923,2]
[359965057,1746452654457,-500.0,0.00019923,2]
[359965058,1746452654477,-500.0,0.00019923,2]
[359965059,1746452654498,-500.0,0.00019923,2]
[359965060,1746452654519,-158.82667497,0.00019923,2]
[359965061,1746452654540,-181.132582,0.00019923,2]
[359965062,1746452654560,-181.132582,0.00019923,2]
[359965063,1746452654580,-58506.55,0.00019923,2]
[359965064,1746452654601,-58506.55,0.00019923,2]
[359965065,1746452654623,-58506.55,0.00019923,2]
[359965066,1746452654643,-181.132582,0.00019923,2]
[359965067,1746452654664,-181.132582,0.00019923,2]
[359965068,1746452654839,-1313.392562,0.00019924,2]
[359965069,1746452654864,-151.0,0.00019924,2]
[359965070,1746452654886,-181.132582,0.00019924,2]
[359965071,1746452654908,-181.132582,0.00019924,2]
[359965072,1746452654930,-450.0,0.00019934,2]
[359965073,1746452654952,-450.0,0.00019934,2]
[359965074,1746452654974,-450.0,0.00019934,2]
[359965075,1746452654995,-450.0,0.00019934,2]
[359965076,1746452655017,-48272.63,0.00019934,2]
[359965077,1746452655039,-729.68,0.00019934,2]
[359965078,1746452655063,-450.0,0.00019934,2]
[359965079,1746452655084,-450.0,0.00019934,2]
[359965080,1746452655105,-153566.57905602,0.00019935,2]
[359965081,1746452655130,-1313.392562,0.00019935,2]
[359965082,1746452655152,-1313.392562,0.00019935,2]